bitfinex-derivatives/quotes_BTCF0:USTF0_20210703
["timestamp","ask_amount","ask_price","bid_price","bid_amount"]
[1625335596218,0.72172632,34640.0,34639.0,1.76338825]
[1625335596316,0.72172632,34640.0,34639.0,1.70438825]
[1625335596868,0.72172632,34640.0,34639.0,1.69959657]
[1625335597019,0.72172632,34640.0,34639.0,0.67979776]
[1625335597318,0.72172632,34640.0,34639.0,0.73879776]
[1625335597418,0.72172632,34640.0,34639.0,0.95674776]
[1625335597668,0.72172632,34640.0,34639.0,0.96154564]
[1625335598020,0.48115088,34640.0,34639.0,0.96154564]
[1625335598222,0.48115088,34640.0,34639.0,1.98127287]
[1625335598569,0.48115088,34640.0,34639.0,1.92227287]
[1625335598670,0.48115088,34640.0,34639.0,1.98127287]
[1625335598772,0.48115088,34640.0,34639.0,0.96154564]
[1625335598773,0.53815088,34640.0,34639.0,0.96154564]
[1625335599173,0.48115088,34640.0,34639.0,0.96154564]
[1625335599273,0.48115088,34640.0,34639.0,0.90254564]
[1625335599373,0.53815088,34640.0,34639.0,0.90254564]
[1625335599472,0.48115088,34640.0,34639.0,0.90254564]
[1625335599822,0.48115088,34640.0,34639.0,1.92226325]
[1625335600223,0.48115088,34640.0,34639.0,1.98126325]
[1625335600323,0.48115088,34640.0,34639.0,1.92226325]
[1625335600827,0.48115088,34640.0,34639.0,1.98126325]
[1625335600925,0.48115088,34640.0,34639.0,1.92226325]
[1625335601025,0.48115088,34640.0,34639.0,1.98126325]
[1625335601425,0.53815088,34640.0,34639.0,1.98126325]
[1625335601576,0.48115088,34640.0,34639.0,1.98126325]
[1625335605289,0.48115088,34640.0,34639.0,3.1709232]
[1625335606288,0.08245024,34645.0,34639.0,3.2299232]
[1625335606538,0.08245024,34645.0,34640.0,0.00479726]
[1625335606689,0.08250202,34647.0,34644.0,0.67984954]
[1625335606792,0.08250202,34647.0,34644.0,0.73884954]
[1625335606892,0.08250202,34647.0,34644.0,0.79784954]
[1625335606993,0.16483937,34648.0,34644.0,0.79784954]
[1625335606994,0.24734815,34648.0,34645.0,0.67976718]
[1625335607092,0.24734815,34648.0,34645.0,0.68456429]
[1625335607192,0.24734815,34648.0,34645.0,0.80256429]
[1625335607393,0.24734815,34648.0,34646.0,0.00479701]
[1625335607542,0.24734815,34648.0,34646.0,0.28361701]
[1625335607651,0.24738567,34649.0,34647.0,0.25490859]
[1625335608093,0.24738567,34649.0,34648.0,0.24057544]
[1625335608194,0.24738567,34649.0,34648.0,0.32555464]
[1625335608445,0.24738567,34649.0,34648.0,0.33034964]
[1625335608796,0.24738567,34649.0,34648.0,0.50030469]
[1625335609401,0.48798992,34650.0,34648.0,0.50030469]
[1625335609599,0.48798992,34650.0,34648.0,0.55930469]
[1625335609751,0.48798992,34650.0,34649.0,0.00479448]
[1625335609899,0.48798992,34650.0,34649.0,0.06379448]
[1625335610002,0.24057544,34650.0,34649.0,0.06379448]
[1625335610451,0.24057544,34650.0,34649.0,0.74354318]
[1625335611454,0.24057544,34650.0,34649.0,1.76313666]
[1625335617862,0.24057544,34650.0,34649.0,2.9533806]
[1625335618467,0.24057544,34650.0,34649.0,1.76313666]
[1625335619369,0.24057544,34650.0,34649.0,1.70413666]
[1625335619469,0.24057544,34650.0,34649.0,1.76313666]
[1625335619871,0.29757544,34650.0,34649.0,1.76313666]
[1625335620222,0.54565113,34650.0,34649.0,0.68454318]
[1625335620471,0.60465113,34650.0,34649.0,0.68454318]
[1625335620671,0.60465113,34650.0,34649.0,0.6797487]
[1625335620774,1.01729266,34650.0,34648.0,1.16179919]
[1625335621373,1.01729266,34650.0,34648.0,0.68064831]
[1625335621473,2.80442977,34649.0,34646.0,0.08508639]
[1625335621572,0.057,34648.0,34646.0,0.08508639]
[1625335621673,0.116,34648.0,34646.0,0.08508639]
[1625335622025,0.116,34648.0,34645.0,0.17017277]
[1625335622026,1.64915323,34647.0,34645.0,0.08508857]
[1625335622174,0.29757544,34646.0,34645.0,0.08508857]
[1625335622573,0.29757544,34646.0,34644.0,0.25526618]
[1625335622574,2.00570382,34646.0,34644.0,0.25526618]
[1625335623127,0.65981462,34645.0,34644.0,0.25526618]
[1625335623228,0.77581462,34645.0,34644.0,0.25526618]
[1625335623732,1.76576059,34645.0,34643.0,0.25525911]
[1625335624280,0.65979922,34644.0,34643.0,0.08508637]
[1625335624430,1.7064156,34644.0,34642.0,0.32566838]
[1625335624530,1.7654156,34644.0,34642.0,0.32566838]
[1625335624733,1.7654156,34644.0,34642.0,0.24057544]
[1625335625683,1.65007629,34643.0,34642.0,0.24057544]
[1625335625782,1.76607629,34643.0,34642.0,0.24057544]
[1625335626085,1.76607629,34643.0,34642.0,0.32567044]
[1625335626236,2.00665173,34643.0,34642.0,0.32567044]
[1625335626534,1.94765173,34643.0,34642.0,0.49585942]
[1625335626636,1.94765173,34643.0,34642.0,0.50065099]
[1625335626836,1.89065173,34643.0,34642.0,0.50065099]
[1625335626936,0.24057544,34643.0,34642.0,0.9261138]
[1625335627238,0.24057544,34643.0,34642.0,0.9851138]
[1625335627539,0.24057544,34643.0,34642.0,2.0061946]
[1625335628589,0.24057544,34643.0,34642.0,3.19744941]
[1625335628892,0.24057544,34643.0,34642.0,0.30436701]
[1625335629191,0.24057544,34643.0,34642.0,0.36336701]
[1625335629340,0.24057544,34643.0,34642.0,0.30436701]
[1625335629442,0.24057544,34643.0,34642.0,4.55886163]
[1625335629892,0.24057544,34643.0,34642.0,5.06940463]
[1625335629993,0.24057544,34643.0,34642.0,5.12840463]
[1625335630945,0.24057544,34643.0,34642.0,5.35418463]
[1625335631449,0.24057544,34643.0,34642.0,5.29518463]
[1625335633501,0.24057544,34643.0,34642.0,5.35418463]
[1625335633650,0.24057544,34646.0,34642.0,5.35418463]
[1625335633958,0.24057544,34646.0,34643.0,0.00478762]
[1625335634308,0.24057544,34646.0,34645.0,3.64532124]
[1625335634508,0.24057544,34646.0,34645.0,3.76332124]
[1625335634757,0.24057544,34646.0,34645.0,3.76810876]
[1625335635359,0.24057544,34646.0,34645.0,5.13006087]
[1625335643882,0.24057544,34646.0,34645.0,5.07106087]
[1625335644333,0.29757544,34646.0,34645.0,5.07106087]
[1625335644483,0.29757544,34646.0,34645.0,5.01206087]
[1625335644984,1.12767881,34646.0,34645.0,3.65010876]
[1625335645332,1.12767881,34646.0,34645.0,3.70910876]
[1625335645734,1.07067881,34646.0,34645.0,3.70910876]
[1625335645835,1.40297801,34646.0,34645.0,3.70910876]
[1625335646137,1.45997801,34646.0,34645.0,3.70910876]
[1625335646434,1.40297801,34646.0,34645.0,3.70910876]
[1625335647036,1.40297801,34646.0,34645.0,3.76810876]
[1625335647388,1.07092204,34646.0,34645.0,3.76810876]
[1625335647938,0.49001819,34646.0,34645.0,5.13147745]
[1625335648338,0.24057544,34646.0,34645.0,5.13147745]
[1625335650443,0.0832296,34647.0,34645.0,5.13147745]
[1625335650593,0.58237196,34648.0,34645.0,5.13147745]
[1625335650843,0.58237196,34648.0,34646.0,0.00478645]
[1625335650943,0.58237196,34648.0,34646.0,0.12278645]
[1625335651294,0.24971457,34648.0,34647.0,4.77735462]
[1625335651495,0.24971457,34648.0,34647.0,4.89535462]
[1625335651747,0.58244523,34648.0,34647.0,4.89535462]
[1625335652698,0.08328397,34648.0,34647.0,4.89535462]
[1625335653100,0.58270722,34649.0,34647.0,4.89535462]
[1625335653449,0.58270722,34649.0,34648.0,4.77742438]
[1625335653599,0.58270722,34649.0,34648.0,4.89542438]
[1625335653800,0.08337713,34649.0,34648.0,4.89542438]
[1625335654253,0.49984353,34649.0,34648.0,4.89542438]
[1625335654952,0.33317352,34649.0,34648.0,4.89542438]
[1625335655303,0.83294094,34649.0,34648.0,4.89542438]
[1625335656153,0.49976742,34649.0,34648.0,4.89542438]
[1625335657360,0.83302442,34649.0,34648.0,4.89542438]
[1625335657760,0.49976742,34649.0,34648.0,4.89542438]
[1625335657859,0.55676742,34649.0,34648.0,4.89542438]
[1625335658310,0.49976742,34649.0,34648.0,4.89542438]
[1625335658410,1.16623144,34649.0,34648.0,4.89542438]
[1625335659013,0.83278049,34649.0,34648.0,4.89542438]
[1625335659514,0.24995432,34649.0,34648.0,4.89542438]
[1625335659965,0.83217572,34649.0,34648.0,4.89542438]
[1625335661114,0.24995802,34649.0,34648.0,4.89542438]
[1625335661313,0.30695802,34649.0,34648.0,4.89542438]
[1625335661714,0.55619821,34649.0,34648.0,4.89542438]
[1625335662014,0.49919821,34649.0,34648.0,4.89542438]
[1625335662669,0.49952807,34649.0,34648.0,4.89542438]
[1625335664518,0.55652807,34649.0,34648.0,4.89542438]
[1625335664619,0.55652548,34649.0,34648.0,4.89542438]
[1625335665120,1.22242751,34649.0,34648.0,4.89542438]
[1625335665923,1.22242751,34649.0,34648.0,4.83642438]
[1625335666373,1.22242751,34649.0,34648.0,4.77742438]
[1625335666572,1.46300295,34649.0,34648.0,4.77742438]
[1625335667222,2.46147016,34649.0,34648.0,3.41381331]
[1625335667322,2.79507016,34649.0,34648.0,3.41381331]
[1625335667423,2.80872533,34649.0,34648.0,3.41381331]
[1625335667623,2.80872533,34649.0,34648.0,2.22065363]
[1625335667624,3.97323818,34649.0,34648.0,2.22065363]
[1625335668025,4.03223818,34649.0,34648.0,2.22065363]
[1625335668574,5.36346212,34649.0,34648.0,1.19794533]
[1625335669025,5.36346212,34649.0,34648.0,0.60187774]
[1625335669675,5.30446212,34649.0,34648.0,0.60187774]
[1625335670678,5.36346212,34649.0,34648.0,0.60187774]
[1625335670977,5.30446212,34649.0,34648.0,0.60187774]
[1625335671079,5.36346212,34649.0,34648.0,0.60187774]
[1625335671327,5.30446212,34649.0,34648.0,0.60187774]
[1625335671427,5.36346212,34649.0,34648.0,0.60187774]
[1625335671527,5.30446212,34649.0,34648.0,0.60187774]
[1625335671627,5.36346212,34649.0,34648.0,0.60187774]
[1625335671727,5.30446212,34649.0,34648.0,0.60187774]
[1625335671877,5.30446212,34649.0,34648.0,0.26068226]
[1625335672177,5.36346212,34649.0,34648.0,0.26068226]
[1625335672277,5.30446212,34649.0,34648.0,0.26068226]
[1625335672680,5.36346212,34649.0,34648.0,0.26068226]
[1625335672780,5.30446212,34649.0,34648.0,0.26068226]
[1625335673280,5.36346212,34649.0,34648.0,0.26068226]
[1625335673380,5.36346212,34649.0,34648.0,0.09008452]
[1625335673530,5.36346212,34649.0,34648.0,0.08529887]
[1625335673781,6.86082136,34649.0,34646.0,0.08529283]
[1625335674181,0.01365482,34648.0,34646.0,0.08529283]
[1625335674380,0.0876,34647.0,34646.0,0.08529283]
[1625335674480,4.92157295,34647.0,34645.0,1.07820168]
[1625335674830,4.92157295,34647.0,34645.0,0.83762624]
[1625335674931,4.65768617,34646.0,34645.0,0.32586924]
[1625335675031,4.72834125,34646.0,34645.0,0.32586924]
[1625335675131,4.84634125,34646.0,34645.0,0.32586924]
[1625335675533,4.72834125,34646.0,34645.0,0.32586924]
[1625335675635,6.22445866,34646.0,34645.0,0.24057544]
[1625335675881,6.28345866,34646.0,34645.0,0.24057544]
[1625335676583,6.5240341,34646.0,34645.0,0.24057544]
[1625335676885,6.51037902,34646.0,34645.0,0.24057544]
[1625335677335,5.01426161,34646.0,34645.0,0.24057544]
[1625335677937,5.07326161,34646.0,34645.0,0.24057544]
[1625335678037,6.50877046,34646.0,34645.0,0.24057544]
[1625335678840,6.44977046,34646.0,34645.0,0.24057544]
[1625335679042,4.89826161,34646.0,34645.0,0.29957544]
[1625335679243,4.89826161,34646.0,34645.0,0.35857544]
[1625335679491,4.89826161,34646.0,34645.0,0.36336355]
[1625335679647,3.56756541,34646.0,34645.0,0.87479914]
[1625335680043,3.56756541,34646.0,34645.0,1.06647914]
[1625335680294,2.40318545,34646.0,34645.0,3.9643233]
[1625335680944,2.48654737,34646.0,34645.0,5.32787449]
[1625335681044,0.32393736,34646.0,34645.0,5.32787449]
[1625335681547,0.24057544,34646.0,34645.0,5.32787449]
[1625335683151,0.24057544,34649.0,34645.0,6.86169781]
[1625335683601,0.24993061,34650.0,34645.0,7.36169781]
[1625335683748,0.24993061,34650.0,34646.0,0.0047866]
[1625335683852,0.24993061,34650.0,34646.0,0.1227866]
[1625335683951,0.08336567,34650.0,34648.0,4.77176125]
[1625335684050,0.08336567,34650.0,34648.0,4.88976125]
[1625335684199,0.08336567,34650.0,34649.0,0.00478642]
[1625335684300,0.08336567,34650.0,34649.0,0.06378642]
[1625335684400,0.08336567,34650.0,34649.0,0.12278642]
[1625335684701,0.25025326,34653.0,34650.0,0.059]
[1625335684800,0.25025326,34653.0,34650.0,0.118]
[1625335685050,0.25025326,34653.0,34651.0,0.00478608]
[1625335685153,0.25025326,34653.0,34651.0,0.12278608]
[1625335685251,0.08351985,34654.0,34652.0,4.77208796]
[1625335685351,0.08351985,34654.0,34652.0,5.10799796]
[1625335685551,0.08351985,34654.0,34653.0,0.00478603]
[1625335685655,0.08351985,34654.0,34653.0,0.12278603]
[1625335685753,0.58402441,34655.0,34653.0,4.89333603]
[1625335686106,0.25044514,34655.0,34654.0,4.77515489]
[1625335686253,0.25044514,34655.0,34654.0,4.89315489]
[1625335686455,0.16687299,34655.0,34654.0,4.89315489]
[1625335686554,0.25082056,34657.0,34654.0,4.89315489]
[1625335686704,0.25082056,34657.0,34656.0,0.72172632]
[1625335686806,0.25082056,34657.0,34656.0,0.83972632]
[1625335686954,0.08366252,34657.0,34656.0,5.60989797]
[1625335687105,0.08366252,34657.0,34656.0,5.61468328]
[1625335687606,0.58497084,34658.0,34656.0,5.61468328]
[1625335687906,0.58497084,34658.0,34657.0,0.00478522]
[1625335688005,0.58497084,34658.0,34657.0,4.83227154]
[1625335688006,0.25082175,34658.0,34657.0,4.83227154]
[1625335688106,0.25082175,34658.0,34657.0,4.89127154]
[1625335688959,0.25104638,34659.0,34657.0,4.89127154]
[1625335689307,0.25104638,34659.0,34657.0,4.88648632]
[1625335689509,0.58550828,34660.0,34658.0,4.77096397]
[1625335689608,0.58550828,34660.0,34658.0,4.88896397]
[1625335689809,0.58550828,34660.0,34658.0,4.88417902]
[1625335689911,0.08374183,34660.0,34659.0,3.40430866]
[1625335690012,0.08374183,34660.0,34659.0,3.52230866]
[1625335690365,0.25111741,34660.0,34659.0,3.52230866]
[1625335690464,0.25111741,34660.0,34659.0,3.76833866]
[1625335690767,0.08374183,34660.0,34659.0,3.76833866]
[1625335691367,0.50200298,34661.0,34659.0,3.76833866]
[1625335691368,0.08375441,34661.0,34659.0,3.76833866]
[1625335691824,0.4916804,34662.0,34660.0,3.40260546]
[1625335691969,0.4916804,34662.0,34660.0,3.52060546]
[1625335692368,0.82629438,34662.0,34661.0,2.21169146]
[1625335692468,0.82629438,34662.0,34661.0,2.27069146]
[1625335692618,0.82629438,34662.0,34661.0,2.32969146]
[1625335692720,0.82629438,34662.0,34661.0,2.5702669]
[1625335692969,0.74253107,34662.0,34661.0,2.5702669]
[1625335693375,0.49165938,34662.0,34661.0,2.5702669]
[1625335695076,0.24057544,34662.0,34661.0,3.76059175]
[1625335696480,0.24057544,34662.0,34661.0,2.5702669]
[1625335696580,0.29757544,34662.0,34661.0,2.5702669]
[1625335697079,0.29757544,34662.0,34661.0,2.32969146]
[1625335697181,0.29757544,34662.0,34661.0,1.76030112]
[1625335697280,0.57271544,34662.0,34657.0,0.2893814]
[1625335697381,0.63171544,34662.0,34657.0,0.059]
[1625335697480,0.74971544,34662.0,34623.0,3.89983699]
[1625335697589,0.74971544,34662.0,34659.0,0.25496269]
[1625335697590,2.85934139,34662.0,34659.0,0.25496269]
[1625335697683,2.80034139,34662.0,34659.0,0.25496269]
[1625335697781,2.85934139,34662.0,34659.0,0.17296269]
[1625335697882,0.03,34661.0,34659.0,0.17296269]
[1625335698031,0.03,34661.0,34654.0,1.18982588]
[1625335698032,1.49705884,34660.0,34649.0,0.4250516]
[1625335698179,0.057,34659.0,34649.0,0.4250516]
[1625335698281,0.175,34659.0,34649.0,0.4250516]
[1625335698542,1.49719796,34658.0,34648.0,0.08501249]
[1625335698631,0.057,34657.0,34648.0,0.14401249]
[1625335698732,0.48115088,34649.0,34648.0,0.14401249]
[1625335698832,0.59715088,34649.0,34648.0,0.14401249]
[1625335698933,0.54015088,34649.0,34648.0,0.14401249]
[1625335699034,0.54015088,34649.0,34648.0,0.059]
[1625335699234,0.48115088,34649.0,34648.0,0.059]
[1625335699384,0.53815088,34649.0,34648.0,0.059]
[1625335699484,0.53815088,34649.0,34648.0,0.14401304]
[1625335699937,0.62146133,34649.0,34648.0,0.059]
[1625335700589,0.53815088,34649.0,34648.0,0.14401462]
[1625335701542,0.53815088,34649.0,34647.0,0.66564774]
[1625335701893,0.53815088,34649.0,34647.0,0.24057544]
[1625335701992,0.59715088,34649.0,34647.0,0.24057544]
[1625335702643,0.59715088,34649.0,34647.0,0.32559306]
[1625335702844,0.59715088,34649.0,34647.0,0.38459306]
[1625335703396,0.59715088,34649.0,34647.0,0.32559306]
[1625335703851,0.59715088,34649.0,34647.0,0.24057544]
[1625335704301,0.54015088,34649.0,34647.0,0.24057544]
[1625335704400,0.057,34655.0,34648.0,0.5]
[1625335704499,1.05134576,34656.0,34648.0,0.5]
[1625335704601,1.05134576,34656.0,34648.0,0.78618]
[1625335704701,1.49786131,34664.0,34655.0,0.5]
[1625335704802,1.49786131,34664.0,34663.0,0.96230176]
[1625335704901,1.49786131,34664.0,34663.0,1.23716176]
[1625335705102,0.33372143,34664.0,34663.0,1.72101594]
[1625335705502,0.41740952,34666.0,34663.0,1.79616176]
[1625335705958,0.41822129,34673.0,34663.0,1.79616176]
[1625335706050,0.41822129,34673.0,34663.0,1.85516176]
[1625335706201,0.41822129,34673.0,34664.0,0.00478504]
[1625335706311,0.41822129,34673.0,34664.0,0.06378504]
[1625335706414,0.41822129,34673.0,34664.0,0.12278504]
[1625335706504,0.08377067,34674.0,34665.0,0.5]
[1625335706604,0.08377067,34674.0,34673.0,0.059]
[1625335706702,0.02477067,34674.0,34673.0,1.01106632]
[1625335706901,0.02477067,34674.0,34673.0,1.07006632]
[1625335707104,0.02477067,34674.0,34673.0,1.57006632]
[1625335707203,0.33524122,34682.0,34673.0,1.57006632]
[1625335707303,0.33524122,34682.0,34673.0,1.63384919]
[1625335707604,0.33524122,34682.0,34674.0,0.00478259]
[1625335707704,0.33524122,34682.0,34674.0,0.12278259]
[1625335707806,0.33524122,34682.0,34675.0,0.5]
[1625335707954,0.33524122,34682.0,34675.0,0.618]
[1625335708106,0.33506571,34688.0,34676.0,0.00478241]
[1625335708204,0.33506571,34688.0,34676.0,0.12278241]
[1625335708354,0.33506571,34688.0,34677.0,0.5]
[1625335708453,0.33506571,34688.0,34677.0,0.618]
[1625335708657,0.33506571,34688.0,34683.0,0.33897101]
[1625335708759,0.33506571,34688.0,34687.0,0.96230176]
[1625335708957,0.33506571,34688.0,34687.0,1.08030176]
[1625335709207,0.33499508,34689.0,34687.0,1.08030176]
[1625335709609,0.33499508,34689.0,34687.0,1.02130176]
[1625335709761,0.33455683,34691.0,34687.0,1.02130176]
[1625335710559,0.33455683,34691.0,34687.0,1.08030176]
[1625335710761,0.33455683,34691.0,34687.0,1.02130176]
[1625335711263,0.33323075,34692.0,34687.0,1.02130176]
[1625335711463,0.057,34691.0,34687.0,1.02130176]
[1625335712266,0.057,34691.0,34687.0,0.96230176]
[1625335712518,0.39019102,34691.0,34687.0,0.96230176]
[1625335713920,0.33319102,34691.0,34687.0,0.96230176]
[1625335714120,0.39019102,34691.0,34687.0,0.96230176]
[1625335714222,0.39019102,34691.0,34687.0,1.02130176]
[1625335714425,0.057,34691.0,34687.0,1.02130176]
[1625335714622,0.33282366,34692.0,34687.0,1.02130176]
[1625335714822,0.33282366,34692.0,34691.0,0.24057544]
[1625335714922,0.33282366,34692.0,34691.0,0.49773544]
[1625335716680,0.39182366,34692.0,34691.0,0.49773544]
[1625335716779,0.39182366,34692.0,34691.0,0.24057544]
[1625335716879,0.45082366,34692.0,34691.0,0.24057544]
[1625335717078,0.45082366,34692.0,34687.0,0.72172632]
[1625335717280,0.71049366,34692.0,34687.0,0.72172632]
[1625335717380,1.54104764,34692.0,34687.0,0.72172632]
[1625335717931,0.33256199,34689.0,34687.0,0.72172632]
[1625335718029,0.45056199,34689.0,34687.0,0.72172632]
[1625335718431,0.33247254,34688.0,34687.0,0.72172632]
[1625335718530,0.39147254,34688.0,34677.0,0.057]
[1625335718680,0.45047254,34688.0,34673.0,0.057]
[1625335718880,0.49813544,34675.0,34674.0,0.24057544]
[1625335718982,0.55713544,34675.0,34674.0,0.24057544]
[1625335719184,0.49813544,34675.0,34674.0,0.24057544]
[1625335720135,0.49813544,34675.0,34674.0,0.29957544]
[1625335720384,0.24057544,34675.0,34674.0,0.24057544]
[1625335720585,0.24057544,34675.0,34674.0,0.29957544]
[1625335720785,0.24057544,34675.0,34674.0,0.24057544]
[1625335722990,0.29957544,34675.0,34674.0,0.24057544]
[1625335725396,0.35857544,34675.0,34674.0,0.24057544]
[1625335725495,0.29957544,34675.0,34674.0,0.24057544]
[1625335725595,0.35857544,34675.0,34674.0,0.24057544]
[1625335725895,0.35857544,34675.0,34670.0,0.9283]
[1625335726397,0.29957544,34675.0,34670.0,0.9283]
[1625335726896,0.24057544,34671.0,34670.0,0.9283]
[1625335733460,0.52993544,34671.0,34670.0,0.9283]
[1625335735360,0.58893544,34671.0,34670.0,0.9283]
[1625335735913,1.57922459,34671.0,34670.0,0.9283]
[1625335736312,1.57922459,34671.0,34655.0,0.3380248]
[1625335736415,1.57922459,34671.0,34652.0,1.01407439]
[1625335736416,0.059,34670.0,34654.0,0.33803406]
[1625335736514,0.118,34670.0,34654.0,0.33803406]
[1625335736868,0.3297697,34661.0,34650.0,1.18311921]
[1625335736968,0.3297697,34661.0,34648.0,0.33832644]
[1625335736969,0.96230176,34653.0,34648.0,0.33832644]
[1625335737119,1.26395176,34653.0,34648.0,0.33832644]
[1625335737370,1.26395176,34653.0,34649.0,0.00479233]
[1625335737616,1.32295176,34653.0,34649.0,0.00479233]
[1625335737818,1.26395176,34653.0,34649.0,0.00479233]
[1625335737919,1.32295176,34653.0,34649.0,0.00479233]
[1625335738168,1.32295176,34653.0,34647.0,0.33835046]
[1625335738269,1.26395176,34653.0,34647.0,0.33835046]
[1625335738370,1.32295176,34653.0,34647.0,0.33835046]
[1625335738970,0.24057544,34648.0,34647.0,0.33835046]
[1625335740324,0.24057544,34648.0,34647.0,0.34314294]
[1625335741126,0.24057544,34648.0,34647.0,0.33835046]
[1625335742179,0.24057544,34648.0,34647.0,0.34314291]
[1625335743633,0.24057544,34648.0,34647.0,0.40214291]
[1625335744135,0.24057544,34648.0,34647.0,1.07954762]
[1625335744584,0.24057544,34648.0,34647.0,2.26458874]
[1625335745386,0.24057544,34648.0,34647.0,2.53680874]
[1625335745934,0.24057544,34648.0,34647.0,3.03680874]
[1625335746336,0.24057544,34648.0,34647.0,3.09580874]
[1625335746536,0.48115088,34653.0,34647.0,4.4501261]
[1625335746987,0.48115088,34653.0,34652.0,4.295163]
[1625335747134,0.48115088,34653.0,34652.0,4.413163]
[1625335747336,0.48115088,34653.0,34652.0,4.354163]
[1625335747438,0.24057544,34661.0,34652.0,4.413163]
[1625335747739,0.24057544,34661.0,34659.0,0.63796542]
[1625335748086,0.24057544,34665.0,34660.0,0.3432541]
[1625335748236,0.24057544,34665.0,34660.0,0.4022541]
[1625335748692,0.24057544,34665.0,34661.0,0.00479]
[1625335748990,0.24057544,34665.0,34661.0,0.06379]
[1625335749090,0.24057544,34665.0,34664.0,0.48115088]
[1625335750449,0.24057544,34665.0,34664.0,0.48594097]
[1625335750548,0.24057544,34665.0,34664.0,0.54494097]
[1625335751747,0.24057544,34665.0,34664.0,0.48115088]
[1625335751997,0.24057544,34665.0,34664.0,0.24057544]
[1625335753050,0.48115088,34665.0,34664.0,0.24057544]
[1625335754702,0.48115088,34665.0,34664.0,0.24536166]
[1625335755000,0.48115088,34665.0,34664.0,0.24057544]
[1625335755502,0.48115088,34665.0,34664.0,0.24536169]
[1625335756756,0.54015088,34665.0,34664.0,0.24536169]
[1625335756855,0.48115088,34665.0,34664.0,0.24057544]
[1625335757205,0.54015088,34665.0,34664.0,0.24057544]
[1625335757356,0.48115088,34665.0,34664.0,0.24057544]
[1625335757557,0.54015088,34665.0,34664.0,0.24057544]
[1625335757656,0.48115088,34665.0,34664.0,0.24057544]
[1625335757756,0.54015088,34665.0,34664.0,0.24057544]
[1625335758007,0.48115088,34665.0,34664.0,0.24057544]
[1625335759260,0.73721088,34665.0,34664.0,0.24057544]
[1625335759357,0.79621088,34665.0,34664.0,0.24057544]
[1625335759708,0.85521088,34665.0,34664.0,0.24057544]
[1625335759809,0.79621088,34665.0,34664.0,0.24057544]
[1625335759909,0.85521088,34665.0,34664.0,0.24057544]
[1625335761160,2.50006362,34665.0,34664.0,0.24057544]
[1625335761862,2.50006362,34665.0,34658.0,0.24057544]
[1625335762314,2.50006362,34665.0,34654.0,0.33891778]
[1625335762315,0.32901422,34662.0,34659.0,0.00478738]
[1625335762412,0.44701422,34662.0,34659.0,0.00478738]
[1625335762519,0.44701422,34662.0,34654.0,0.33891778]
[1625335762764,0.44701422,34662.0,34655.0,0.00478756]
[1625335763115,0.72172632,34656.0,34655.0,0.00478756]
[1625335763215,1.00195632,34656.0,34655.0,0.00478756]
[1625335763368,1.11995632,34656.0,34655.0,0.00478756]
[1625335763573,1.11995632,34656.0,34652.0,0.00478768]
[1625335764015,1.06095632,34656.0,34652.0,0.00478768]
[1625335764115,1.00195632,34656.0,34652.0,0.00478768]
[1625335764365,1.00195632,34656.0,34652.0,0.33909778]
[1625335764615,1.06095632,34656.0,34652.0,0.33909778]
[1625335764715,1.06095632,34656.0,34651.0,0.68298294]
[1625335764716,1.06095632,34656.0,34653.0,0.34388218]
[1625335765165,1.30153176,34656.0,34654.0,0.00478748]
[1625335765717,1.30153176,34656.0,34653.0,0.00478757]
[1625335766470,1.36053176,34656.0,34653.0,0.00478757]
[1625335766770,1.30153176,34656.0,34653.0,0.00478757]
[1625335766970,1.36053176,34656.0,34653.0,0.00478757]
[1625335767374,1.36053176,34656.0,34652.0,0.00478774]
[1625335767621,1.36053176,34656.0,34654.0,0.00478774]
[1625335767821,1.36053176,34656.0,34651.0,0.0047877]
[1625335768121,1.36053176,34656.0,34655.0,0.0047877]
[1625335768222,1.30153176,34656.0,34655.0,0.0047877]
[1625335768373,1.30153176,34656.0,34651.0,0.34388689]
[1625335768621,1.24253176,34656.0,34652.0,0.00478655]
[1625335768721,1.24253176,34656.0,34652.0,0.34386457]
[1625335768821,1.30153176,34656.0,34652.0,0.34386457]
[1625335769174,1.30153176,34656.0,34653.0,0.00478655]
[1625335771329,1.30153176,34656.0,34653.0,0.3441883]
[1625335771429,1.24253176,34656.0,34653.0,0.3441883]
[1625335771630,1.24253176,34656.0,34654.0,0.00478978]
[1625335771731,1.30153176,34656.0,34654.0,0.00478978]
[1625335771833,1.24253176,34656.0,34654.0,0.00478978]
[1625335772132,1.30153176,34656.0,34654.0,0.00478978]
[1625335772431,1.36053176,34656.0,34654.0,0.00478978]
[1625335772731,1.24253176,34656.0,34653.0,0.00478993]
[1625335773133,1.30153176,34656.0,34653.0,0.00478993]
[1625335773386,1.30153176,34656.0,34653.0,0.34438984]
[1625335773732,1.36053176,34656.0,34654.0,0.00478983]
[1625335775087,1.68994051,34656.0,34654.0,0.00478983]
[1625335775337,1.68994051,34656.0,34653.0,0.00478994]
[1625335775436,1.63094051,34656.0,34653.0,0.00478994]
[1625335775540,1.68994051,34656.0,34653.0,0.00478994]
[1625335775688,0.38862762,34655.0,34652.0,0.34461973]
[1625335775891,0.38862762,34655.0,34654.0,0.00478999]
[1625335776189,0.38862762,34655.0,34653.0,0.00478999]
[1625335776394,0.38862762,34655.0,34654.0,0.00478999]
[1625335776541,0.44762762,34655.0,34654.0,0.00478999]
[1625335776640,0.32962762,34655.0,34654.0,0.00478999]
[1625335776740,0.32962762,34655.0,34654.0,0.28886]
[1625335776942,0.32962762,34655.0,34654.0,0.29364981]
[1625335777293,1.62139226,34656.0,34654.0,0.29364981]
[1625335777294,0.96230176,34656.0,34654.0,0.63345159]
[1625335777743,0.96230176,34656.0,34655.0,0.00478974]
[1625335777744,1.35104327,34656.0,34655.0,0.00478974]
[1625335778743,1.29204327,34656.0,34655.0,0.34473399]
[1625335779148,0.96230176,34656.0,34655.0,0.34473399]
[1625335779545,1.29156699,34656.0,34655.0,0.34473399]
[1625335779847,1.35056699,34656.0,34655.0,0.34473399]
[1625335780097,1.02130176,34656.0,34655.0,0.34473399]
[1625335780197,1.08030176,34656.0,34655.0,0.34473399]
[1625335780297,1.02130176,34656.0,34655.0,0.34473399]
[1625335780398,1.08030176,34656.0,34655.0,0.34473399]
[1625335780498,1.02130176,34656.0,34655.0,0.34473399]
[1625335780598,1.3505697,34656.0,34655.0,0.34473399]
[1625335781000,1.4095697,34656.0,34655.0,0.34473399]
[1625335781102,1.3505697,34656.0,34655.0,0.34473399]
[1625335781200,1.4095697,34656.0,34655.0,0.34473399]
[1625335781603,1.08030176,34656.0,34655.0,0.34473399]
[1625335781952,2.72637365,34656.0,34655.0,0.00478974]
[1625335782300,2.72637365,34656.0,34654.0,0.00478988]
[1625335782551,2.97822365,34656.0,34654.0,0.00478988]
[1625335782651,2.97822365,34656.0,34655.0,0.00478994]
[1625335782902,2.31976198,34656.0,34655.0,0.00478994]
[1625335783104,2.31976198,34656.0,34654.0,0.00478992]
[1625335783455,2.97854732,34656.0,34654.0,0.00478992]
[1625335784008,0.65903214,34655.0,34654.0,0.00478992]
[1625335784156,0.77703214,34655.0,34654.0,0.00478992]